Cogmind - Beta 14 @@@ ROGUE MODE // 2024.08.10 @ 05:58:02 Player: A Moose Result: Destroyed by Autobeam Turret with Autobeam Performance ------------- Evolutions (0) 0 Regions Visited (2) 400 Robots Destroyed (27) 135 Value Destroyed (504) 504 Prototype IDs (3) 60 Alien Tech Used (0) 0 Bonus (0) 0 TOTAL SCORE: 1099 Bonus ------- None Cogmind --------- Core Integrity 0/250 Matter 223/300 Energy 250/250 System Corruption 1% Temperature Cool (6) Movement Rolling (140) Ox4 Location -10/Subcaves Parts ------- > --- POWER (1) -------- Ion Engine > --- PROPULSION (2) --- Wheel Wheel > --- UTILITY (2) ------ Huge Storage Unit Hardened Light Armor Plating > --- WEAPON (2) ------- Mini Grenade Launcher Flail > --- INVENTORY (25) --- Light Ion Engine Light Ion Engine Light Ion Engine Wheel Wheel Wheel Large Storage Unit Large Battery (200) Medium Matter Pod (100) Large Matter Pod (150) Structural Scanner Signal Interpreter Improved Terrain Scanner Improved Targeting Computer Light Armor Plating Hardened Light Armor Plating Hardened Light Armor Plating Beam Cannon Heavy Assault Rifle Heavy Assault Rifle Heavy Assault Rifle Rocket Launcher Subdweller Shrapnel Launcher Mining Laser Peak State ------------ > --- POWER ------------ Light Ion Engine > --- PROPULSION ------- Wheel Compact Wheel > --- UTILITY ---------- Huge Storage Unit Improved Terrain Scanner > --- WEAPON ----------- Heavy Assault Rifle Heavy Assault Rifle > --- INVENTORY -------- Ion Engine Wheel Wheel Wheel Large Storage Unit Large Storage Unit Large Battery Medium Matter Pod Large Matter Pod Structural Scanner Signal Interpreter Improved Targeting Computer Light Armor Plating Hardened Light Armor Plating Hardened Light Armor Plating Hardened Light Armor Plating Beam Cannon Heavy Assault Rifle Rocket Launcher Mini Grenade Launcher Mining Laser Flail [Rating: 14] Favorites ----------- Power Light Ion Engine Engine Light Ion Engine Propulsion Compact Wheel Wheel Compact Wheel Utility Huge Storage Unit Device Structural Scanner Storage Huge Storage Unit Protection Light Armor Plating Weapon Heavy Assault Rifle Energy Gun EM Pulse Gun Ballistic Gun Heavy Assault Rifle Launcher Mini Grenade Launcher Impact Weapon Flail Build | -11 -10 -10 ------- Run | Yrd Mat Sub Slots Evolved . | . . . Power . | . . . Propulsion . | . . . Utility . | . . . Weapon . | . . . Parts Attached 27 | 8 15 4 Power 3 | 1 2 . Engine 3 | 1 2 . Core . | . . . Reactor . | . . . Propulsion 4 | 2 1 1 Treads . | . . . Leg . | . . . Wheel 4 | 2 1 1 Hover . | . . . Flight . | . . . Utility 11 | 2 8 1 Device 5 | 1 4 . Storage 3 | 1 2 . Processor . | . . . Hackware . | . . . Protection 3 | . 2 1 Artifact . | . . . Weapon 9 | 3 4 2 Energy Gun 2 | 2 . . Energy Cannon . | . . . Ballistic Gun 4 | 1 3 . Ballistic Cannon . | . . . Launcher 1 | . . 1 Special Weapon . | . . . Impact Weapon 2 | . 1 1 Slashing Weapon . | . . . Piercing Weapon . | . . . Special Melee Weapon . | . . . Unidentified Prototypes . | . . . Parts Lost 4 | . 3 1 Power . | . . . Propulsion 2 | . 1 1 Utility . | . . . Weapon 2 | . 2 . Highest Loss Streak 2 | . 2 1 To Critical Strikes . | . . . Average Slot Usage (%) 99 | . 98 99 Engine 14 | . 14 14 Wheel 27 | . 27 27 Device 7 | . 7 12 Storage 14 | . 14 14 Protection 6 | . 6 1 Energy Gun 4 | . 5 . Ballistic Gun 19 | . 20 3 Launcher 1 | . . 12 Impact Weapon 2 | . . 12 Peak Build Rating 14 | 9 14 13 Average Rating 11 | 5 11 12 On Entrance 7 | . 9 12 Naked Turns . | . . . Heaviest Build 93 | 13 92 93 Greatest Support 32 | 32 32 26 Greatest Overweight (x) 4 | . 3 4 Average Overweight (x) 1 | . 1 3 Largest Inventory Capacity 25 | 8 25 25 Average Capacity 20 | 7 20 25 Most Carried 25 | 4 25 25 Average Carried 17 | 1 17 24 Final Capacity 25 | 8 25 25 Final Carried 25 | 2 25 24 Class Distribution -------------------- 100% | Mutant Dominant Class ---------------- Mutant | -10/Materials Mutant | -10/Subcaves Resources | -11 -10 -10 ----------- Run | Yrd Mat Sub Matter Collected 798 | 279 478 41 Remotely . | . . . Salvage Created 781 | 117 641 23 Parts 40 | 4 31 5 Haulers Intercepted 1 | . 1 . Recyclers Shooed 1 | 1 . . Parts Field Recycled . | . . . Retrieved Matter . | . . . Parts Self-Destructed 5 | . . 5 Prevented . | . . . Kills | -11 -10 -10 ------- Run | Yrd Mat Sub Combat Hostiles Destroyed 19 | . 15 4 Melee 3 | . 3 . Guns 9 | . 9 . AOE 6 | . 2 4 Classes Destroyed 9 | 2 7 . Worker 1 | . 1 . Builder 1 | . 1 . Tunneler 1 | 1 . . Hauler 1 | . 1 . Recycler 2 | 1 1 . Watcher 2 | . 2 . Swarmer 10 | . 6 4 Grunt 8 | . 8 . Subdweller 1 | . 1 . Best Kill Streak 8 | 2 8 4 Combat Bots Only 4 | . 3 4 Max Kills in Single Turn 3 | 1 2 3 Gunslinging . | . . . Exploded 3 | . 2 3 Melee 1 | . 1 . Uniques/NPCs Destroyed . | . . . Combat | -11 -10 -10 -------- Run | Yrd Mat Sub Hostile Shots Fired 102 | . 76 26 Missed 29 | . 18 11 Damage Taken 863 | . 672 191 Core 254 | . 182 72 Absorbed by Shields . | . . . Core Remaining (%) 100 | 100 . . Volleys Fired 55 | 6 41 8 Largest 2 | 2 2 2 Hottest 80 | 80 80 46 Shots Fired 100 | 12 79 9 Gun 93 | 12 79 2 Cannon . | . . . Launcher 7 | . . 7 Special . | . . . Kinetic 56 | . 54 2 Thermal . | . . . Explosive 7 | . . 7 Electromagnetic 37 | 12 25 . Robot Hit Streak 8 | 6 8 7 Robot Miss Streak 8 | 1 8 . Penetration Max . | . . . Secondary Targets . | . . . Shots Hit Robots 61 | 8 51 2 Core Hits 31 | 3 24 4 Critical Kills . | . . . Critical Parts Destroyed 1 | . 1 . Critical Strikes 1 | . 1 . Smash 1 | . 1 . Melee Attacks 18 | . 16 2 Impact 18 | . 16 2 Slashing . | . . . Piercing . | . . . Sneak Attacks . | . . . Combat Hostiles . | . . . Follow-up Attacks . | . . . Damage Inflicted 1664 | 129 1183 352 Guns 783 | 101 682 . Cannons . | . . . Explosions 473 | 28 93 352 Melee 408 | . 408 . Ramming . | . . . Kinetic 527 | . 527 . Thermal 121 | 28 93 . Explosive 352 | . . 352 Electromagnetic 256 | 101 155 . Impact 408 | . 408 . Slashing . | . . . Piercing . | . . . Highest Corruption 1 | . 1 1 Average Corruption 1 | . 1 1 Corruption Purged . | . . . Corruption Blocked . | . . . Effects 7 | . 5 2 Message Errors 3 | . 2 1 Matter Fused 2 | . 2 . Heat Flow Errors 1 | . 1 . Data Loss (minor) 1 | . . 1 Overload Shots . | . . . Overflow Damage 95 | . 90 5 Projectiles . | . . . Explosions 5 | . . 5 Melee 90 | . 90 . Knockbacks 3 | . 3 . Impact 3 | . 3 . Kinetic . | . . . Secondary . | . . . Self-Inflicted Damage 148 | . 54 94 Shots 4 | . 1 3 Rammed . | . . . Targets Rammed . | . . . Kicked . | . . . Crushed . | . . . Highest Temperature 153 | 72 153 . Average Temperature 47 | 30 51 . Received Heat Transfer 288 | . 240 48 Siege Activations . | . . . Robots Corrupted 1 | . 1 . Combat Hostiles 1 | . 1 . Parts Fried 4 | . 4 . Impact Corruptions 4 | . 4 . Robots Melted . | . . . Combat Hostiles . | . . . Parts Melted 1 | . 1 . Heat Transferred 200 | 50 150 . Parts Sabotaged . | . . . Parts Stolen . | . . . Parts Stripped . | . . . Power Chain Reactions 2 | 1 1 . Alert | -11 -10 -10 ------- Run | Yrd Mat Sub Peak Influence 298 | 10 298 . Initial 6 | . 6 . Average 106 | 4 109 . Maximum Alert Level 1 | . 1 . Low Security (%) 82 | 100 81 . Level 1 17 | . 18 . Level 2 . | . . . Level 3 . | . . . Level 4 . | . . . Level 5 . | . . . High Security . | . . . Max Security . | . . . Squads Dispatched 4 | . 4 . Investigation 2 | . 2 . Extermination . | . . . Reinforcement 2 | . 2 . Assault . | . . . Garrison . | . . . Intercept . | . . . Searches Triggered . | . . . Construction Impeded . | . . . Haulers Reinforced . | . . . Active Scanning Responses . | . . . Cargo Convoy Interrupts . | . . . Stealth | -11 -10 -10 --------- Run | Yrd Mat Sub Distress Signals 1 | . 1 . Communications Jammed . | . . . Distress Signals . | . . . Times Spotted 32 | . 23 9 Peak Tracking Total 6 | . 6 5 Tactical Retreats 4 | . 2 2 Traps | -11 -10 -10 ------- Run | Yrd Mat Sub Traps Triggered 2 | . 2 . Indirectly . | . . . Trap Hack Attempts . | . . . Triggered . | . . . Disarmed . | . . . Reprogrammed . | . . . Reused . | . . . Traps Extracted . | . . . Installed . | . . . Triggered . | . . . Machines | -11 -10 -10 ---------- Run | Yrd Mat Sub Machines Disabled 4 | . 2 2 Max in Single Turn 2 | . 2 1 Machines Repaired . | . . . Machines Dismantled . | . . . Machines Sabotaged . | . . . Overloaded Fab Kills . | . . . Hacking | -11 -10 -10 --------- Run | Yrd Mat Sub Machines Accessed 5 | . 5 . Terminals 5 | . 5 . Fabricators . | . . . Repair Stations . | . . . Recycling Units . | . . . Scanalyzers . | . . . Garrison Access . | . . . Total Hacks 16 | . 16 . Successful 10 | . 10 . Failed 6 | . 6 . Catastrophic . | . . . Database Lockouts . | . . . Manual 10 | . 10 . Terminals 16 | . 16 . Fabricators . | . . . Repair Stations . | . . . Recycling Units . | . . . Scanalyzers . | . . . Garrison Access . | . . . Terminal Hacks 6 | . 6 . Robot Analysis 1 | . 1 . Prototype ID Bank 2 | . 2 . Branch Access Points 1 | . 1 . Emergency Access Points 1 | . 1 . Zone Layout 1 | . 1 . Fabricator Hacks . | . . . Repair Station Hacks . | . . . Recycling Unit Hacks . | . . . Scanalyzer . | . . . Garrison Access Hacks . | . . . Unauthorized Hacks 4 | . 4 . Terminals 4 | . 4 . Botnet 3 | . 3 . Search 1 | . 1 . Fabricators . | . . . Repair Stations . | . . . Recycling Units . | . . . Scanalyzers . | . . . Garrison Access . | . . . Data Cores Recovered . | . . . Used . | . . . Hacking Detections 3 | . 3 . Full Trace Events . | . . . Feedback Events . | . . . Feedback Blocked . | . . . Robot Schematics Acquired . | . . . Robots Built . | . . . Authchips . | . . . Time . | . . . Total Robot Build Rating . | . . . Part Schematics Acquired . | . . . Parts Built . | . . . Authchips . | . . . Time . | . . . Total Part Build Rating . | . . . Parts Repaired . | . . . Time . | . . . Parts Recycled . | . . . Recycled Matter . | . . . Retrieved Matter . | . . . Retrieved Components . | . . . Parts Scanalyzed . | . . . Part Schematics Acquired . | . . . Parts Damaged . | . . . Bothacking | -11 -10 -10 ------------ Run | Yrd Mat Sub Used RIF Installer . | . . . Robots Hacked . | . . . Non-combat . | . . . Combat . | . . . Robot Hacks Applied . | . . . Relay Couplers Released . | . . . Fabnet Peak Effective % . | . . . Robots Rewired . | . . . Allies Hacked . | . . . Hacks Repelled . | . . . Allies | -11 -10 -10 -------- Run | Yrd Mat Sub Total Allies . | . . . Largest Group . | . . . Highest-Rated Group . | . . . Highest-Rated Ally . | . . . Total Orders . | . . . Ally Attacks . | . . . Total Damage . | . . . Kills . | . . . Allies Corrupted . | . . . Allies Melted . | . . . Intel | -11 -10 -10 ------- Run | Yrd Mat Sub Robot Analysis Total 1 | . 1 . Derelict Logs Recovered . | . . . Drone Launches . | . . . Drone Recoveries . | . . . Exploration | -11 -10 -10 ------------- Run | Yrd Mat Sub Turns Passed 2012 | 66 1742 204 Spaces Moved 1371 | 35 1206 130 Core 8 | 8 . . Treads . | . . . Legs . | . . . Wheels 1363 | 27 1206 130 Hover . | . . . Flight . | . . . Fastest Speed 50 | 50 100 135 Average Speed 121 | 88 121 135 Slowest Speed 140 | 100 135 140 Overloaded Moves . | . . . Propulsion Burnouts . | . . . Robots Hopped . | . . . Cave-ins Triggered . | . . . Exploration Rate (%) 39 | 3 100 15 Regions Visited 2 Branch Regions 1 Pre-discovered Areas . | . . . Known Exits Taken . | . . . Unknown Exits Taken 2 | 1 1 . Scrap Searched . | . . . Spaces Dug . | . . . Terrain Destroyed 51 | 3 20 28 Melee . | . . . Projectile . | . . . AOE 51 | 3 20 28 Terrain Rammed . | . . . Walls Destroyed . | . . . Machines Disabled . | . . . Actions | -11 -10 -10 --------- Run | Yrd Mat Sub Total 1581 | 57 1378 146 Wait 67 | . 67 . Move 1369 | 34 1205 130 Hop . | . . . Pick Up 39 | 9 29 1 Fast Attach 1 | . 1 . Attach 11 | 7 3 1 Detach . | . . . Swap 15 | 1 11 3 Drop 6 | . 5 1 Fire 55 | 6 41 8 Melee 18 | . 16 2 Ram . | . . . Kick . | . . . Crush . | . . . Escape Stasis . | . . . Rewire . | . . . Trap . | . . . Miscellaneous . | . . . Route ------- -11/Scrapyard -10/Materials (discovered 6 exits: [*Mat x3] / *Min x2 / [*Sub]) -10/Subcaves (discovered 1 exit: [*Rec]) History --------- Turn | Location | Event 26 | -11/Scrapyard | Discovered new exit (range 15) 67 | -11/Scrapyard | Entered Materials 187 | -10/Materials | Identified exit to Mines 187 | -10/Materials | Discovered new exit (range 16) 309 | -10/Materials | Build established: Mutant 555 | -10/Materials | Core integrity fell below 50% 644 | -10/Materials | Discovered new exit (range 11) 667 | -10/Materials | Derelicts attacked the area 1098 | -10/Materials | Discovered new exit (range 10) 1717 | -10/Materials | Discovered new exit (range 11) 1809 | -10/Materials | Entered Subcaves 1815 | -10/Subcaves | Shifting Twisted Machinery released Sub. Shrapnel Launcher 1937 | -10/Subcaves | Discovered new exit (range 15) 1994 | -10/Subcaves | Core integrity fell below 20% 2013 | -10/Subcaves | Destroyed by Autobeam Turret with Autobeam Last Messages --------------- Subatomizers dissect the Lrg. Storage Unit. Acquired 5 matter. Acquired 14 matter. Acquired 6 matter. Acquired 8 matter. EXIT=FOUND System corrupted: Component data lost. S-10 Pest springs to life. S-10 Pest destroyed. Com. Wheel destroyed. Destroyed Com. Wheel. Subatomizers dissect the Lgt. Assault Rifle. S-10 Pest destroyed. Lgt. Assault Rifle fries itself beyond repair. The unstable cave ceiling collapses. Lgt. Assault Rifle fries itself beyond repair. Acquired 8 matter. Machine disabled. QB#XDBIH4L